bitfinex-derivatives/quotes_ETHF0:USTF0_20250620
["timestamp","ask_amount","ask_price","bid_price","bid_amount"]
[1750394107578,3.29339052,2512.6,2512.5,25.06192]
[1750394109281,2.49749052,2512.6,2512.5,25.06192]
[1750394109482,4.00367,2512.7,2512.6,0.7959]
[1750394109679,4.35229479,2512.7,2512.6,0.7959]
[1750394110381,3.2078,2512.7,2512.6,0.7959]
[1750394112688,4.00366,2512.8,2512.7,0.79587]
[1750394112987,4.00366,2512.8,2512.7,25.05887]
[1750394113486,3.2078,2513.1,2512.7,24.263]
[1750394113683,4.00357,2513.1,2512.8,12.06092849]
[1750394113879,4.00357,2513.1,2513.0,0.79578]
[1750394114185,5.14733819,2513.1,2513.0,0.79578]
[1750394115384,6.47763819,2513.1,2513.0,0.79578]
[1750394115789,5.68186819,2513.1,2513.0,0.79578]
[1750394115989,6.47760819,2513.1,2513.0,0.79578]
[1750394116189,5.33384,2513.1,2513.0,0.79578]
[1750394116491,6.47716573,2513.1,2513.0,0.79578]
[1750394116796,5.33384,2513.1,2513.0,0.79578]
[1750394117098,0.79581,2513.0,2512.9,0.79578]
[1750394117297,2.76771,2513.0,2512.9,31.31578]
[1750394117495,2.76771,2513.0,2512.9,7.05678]
[1750394117691,2.76771,2513.0,2512.9,31.31578]
[1750394118395,2.76771,2513.0,2512.9,0.79578]
[1750394118591,2.76771,2513.0,2512.9,31.31478]
[1750394120798,2.76771,2513.0,2512.9,0.79578]
[1750394120993,2.76771,2513.0,2512.9,31.31278]
[1750394121397,2.12611,2513.0,2512.9,31.31278]
[1750394122187,1.3303,2513.0,2512.9,31.31278]
[1750394122398,4.00357,2513.1,2513.0,0.79578]
[1750394122899,5.27977,2513.1,2513.0,0.79578]
[1750394123297,3.21465213,2513.1,2513.0,0.79578]
[1750394123502,6.42245213,2513.1,2513.0,0.79578]
[1750394123690,5.27977,2513.1,2513.0,0.79578]
[1750394123888,5.27977,2513.1,2513.0,25.05178]
[1750394124088,0.79578,2513.0,2512.9,7.05578]
[1750394124291,2.06858,2513.0,2512.9,31.31178]
[1750394125598,2.06858,2513.0,2512.9,0.79578]
[1750394125799,2.06858,2513.0,2512.9,31.31078]
[1750394128389,2.06858,2513.0,2512.9,31.30478]
[1750394128595,4.44441849,2513.0,2512.5,0.6294]
[1750394128794,0.79587,2512.8,2512.7,0.79583]
[1750394128993,0.79587,2512.8,2512.7,25.04883]
[1750394129195,2.04427,2512.8,2512.7,25.04883]
[1750394129396,0.79587,2512.7,2512.6,7.71998]
[1750394129596,2.67647,2512.7,2512.6,31.97298]
[1750394130100,1.8806,2512.7,2512.6,31.97298]
[1750394132400,2.67647,2512.7,2512.6,31.97298]
[1750394132599,1.8806,2512.7,2512.6,31.97298]
[1750394132799,2.67647,2512.7,2512.6,31.97298]
[1750394133005,1.8806,2512.7,2512.6,31.97298]
[1750394134108,4.00362,2512.9,2512.8,0.79584]
[1750394134306,5.14986075,2512.9,2512.8,0.79584]
[1750394134507,6.40976075,2512.9,2512.8,0.79584]
[1750394135308,5.61394075,2512.9,2512.8,0.79584]
[1750394135708,5.61394075,2512.9,2512.8,25.04784]
[1750394136305,4.35404075,2512.9,2512.8,25.04784]
[1750394136509,3.2078,2512.9,2512.8,25.04784]
[1750394137007,0.79575,2513.1,2513.0,0.79578]
[1750394137197,0.79575,2513.1,2513.0,25.04678]
[1750394137198,3.24166223,2513.1,2513.0,25.04678]
[1750394137705,2.44591223,2513.1,2513.0,25.04678]
[1750394139300,3.24165223,2513.1,2513.0,25.04678]
[1750394140813,0.79584,2512.9,2512.8,0.79581]
[1750394141112,0.79584,2512.9,2512.8,31.29981]
[1750394141412,1.14681223,2512.9,2512.8,31.29981]
[1750394141606,2.42111223,2512.9,2512.8,31.29981]
[1750394142207,3.21692223,2512.9,2512.8,31.29981]
[1750394144414,2.07011,2512.9,2512.8,31.29981]
[1750394144615,3.21427201,2512.9,2512.8,31.29981]
[1750394145716,6.42207201,2512.9,2512.8,7.05081]
[1750394145913,6.42207201,2512.9,2512.8,31.29881]
[1750394146413,6.42207201,2512.9,2512.8,25.04381]
[1750394146610,6.42207201,2512.9,2512.8,0.79581]
[1750394146816,6.42207201,2512.9,2512.8,25.04381]
[1750394147718,5.62626201,2512.9,2512.8,25.04381]
[1750394147917,6.42207201,2512.9,2512.8,25.04381]
[1750394149425,6.42207201,2512.9,2512.8,0.79581]
[1750394149712,5.62626201,2512.9,2512.6,0.6691]
[1750394149918,0.79597,2512.5,2512.4,0.79592]
[1750394150114,0.796,2512.4,2512.3,0.79597]
[1750394150314,0.796,2512.3,2512.2,31.96521]
[1750394150722,2.0831,2512.3,2512.2,31.96521]
[1750394151416,0.79613,2512.0,2511.7,1.99041]
[1750394151719,0.79616,2511.8,2511.7,1.47836]
[1750394151918,0.79616,2511.8,2511.7,25.72436]
[1750394152109,2.16526,2511.8,2511.7,25.72436]
[1750394153517,1.3691,2511.8,2511.7,25.72436]
[1750394153717,4.64562,2512.0,2511.9,0.79613]
[1750394154016,4.64559,2512.0,2511.9,0.79613]
[1750394154211,4.00389,2512.0,2511.9,0.79613]
[1750394154621,5.37299,2512.0,2511.9,0.79613]
[1750394155419,4.00389,2512.0,2511.9,0.79613]
[1750394156013,3.2078,2512.0,2511.9,0.79613]
[1750394156216,3.2078,2512.0,2511.9,3.96774849]
[1750394156616,4.00389,2512.0,2511.9,3.96774849]
[1750394157122,3.2078,2512.0,2511.9,3.96774849]
[1750394157524,4.00389,2512.0,2511.9,3.96774849]
[1750394158711,4.00389,2512.0,2511.9,0.79613]
[1750394160524,4.00389,2512.0,2511.9,25.04713]
[1750394161630,4.00389,2512.0,2511.9,0.79613]
[1750394166130,3.2078,2512.0,2511.9,0.79613]
[1750394166329,4.00389,2512.0,2511.9,0.79613]
[1750394166629,0.79616,2511.8,2511.7,25.72837]
[1750394166822,0.79616,2511.8,2511.7,1.47837]
[1750394167222,0.79616,2511.8,2511.7,25.72837]
[1750394167622,2.14256,2511.8,2511.7,25.72837]
[1750394168820,5.35036,2511.8,2511.7,25.72837]
[1750394169629,5.35036,2511.8,2511.7,24.9322]
[1750394169931,5.35036,2511.8,2511.7,25.72839]
[1750394170430,5.35036,2511.8,2511.7,24.9322]
[1750394170631,5.35036,2511.8,2511.7,25.72839]
[1750394171726,5.35036,2511.8,2511.7,1.47839]
[1750394171925,5.35036,2511.8,2511.7,24.9322]
[1750394172126,0.79619,2511.7,2511.6,3.96781849]
[1750394172322,2.09639,2511.7,2511.6,28.21681849]
[1750394173429,1.3002,2511.7,2511.5,0.6622]
[1750394173733,0.79622,2511.6,2511.5,24.9122]
[1750394173932,0.79622,2511.6,2511.5,0.6622]
[1750394174127,0.79622,2511.6,2511.5,24.9112]
[1750394175332,0.79622,2511.6,2511.5,0.6622]
[1750394175633,3.2078,2511.8,2511.7,0.79619]
[1750394177036,4.00385,2512.2,2512.1,0.79606]
[1750394177235,4.00385,2512.2,2512.1,3.96767849]
[1750394177635,5.13443497,2512.2,2512.1,3.96767849]
[1750394179143,5.13443497,2512.2,2512.1,3.17161849]
[1750394179338,5.13443497,2512.2,2512.1,3.96767849]
[1750394179935,5.13443497,2512.2,2512.1,0.79606]
[1750394181440,5.13443497,2512.2,2512.1,3.96767849]
[1750394181639,5.13443497,2512.2,2512.1,0.79606]
[1750394182038,0.79606,2512.1,2512.0,24.248]
[1750394182238,3.17874497,2512.1,2512.0,25.04409]
[1750394182535,3.17874497,2512.1,2512.0,24.248]
[1750394182739,3.17874497,2512.1,2511.9,7.0481]
[1750394182740,0.79609,2512.0,2511.9,0.7961]
[1750394182942,1.92667497,2512.0,2511.9,25.0431]
[1750394184043,1.92667497,2512.0,2511.9,28.21471849]
[1750394184635,1.13058497,2512.0,2511.9,28.21471849]
[1750394184836,0.79609,2512.1,2512.0,0.79609]
[1750394185038,1.92876418,2512.1,2512.0,0.79609]
[1750394188951,1.92876418,2512.1,2512.0,1.48859]
[1750394191043,1.92876418,2512.1,2512.0,0.6925]
[1750394191245,0.79612,2511.9,2511.8,7.04413]
[1750394191448,0.79612,2511.9,2511.8,31.28813]
[1750394191846,0.79612,2511.9,2511.8,0.79613]
[1750394192042,0.79612,2511.9,2511.8,25.04013]
[1750394192545,2.12322,2512.0,2511.9,0.79612]
[1750394192745,3.2557549,2512.0,2511.9,0.79612]
[1750394193243,3.25379842,2512.0,2511.9,0.79612]
[1750394194646,1.99037,2511.9,2511.6,0.79621]
[1750394194838,0.79625,2511.6,2511.5,0.79625]
[1750394195143,0.79625,2511.5,2511.4,24.877]
[1750394195343,2.12705,2511.5,2511.4,24.877]
[1750394196451,2.12705,2511.5,2511.4,25.67326]
[1750394197450,2.12705,2511.5,2511.4,1.43026]
[1750394198147,2.12705,2511.5,2511.4,25.67426]
[1750394198649,2.12705,2511.5,2511.4,25.67326]
[1750394199649,1.3308,2511.5,2511.4,25.67326]
[1750394199953,2.12705,2511.5,2511.4,25.67326]
[1750394200155,1.3308,2511.5,2511.4,25.67326]
[1750394200954,2.12705,2511.5,2511.4,1.43026]
[1750394201154,2.12705,2511.5,2511.4,25.67426]
[1750394201751,2.12705,2511.5,2511.4,1.43026]
[1750394201952,2.12705,2511.5,2511.4,25.67326]
[1750394202147,2.12705,2511.5,2511.4,1.43026]
[1750394202349,0.79631,2511.4,2511.3,0.79628]
[1750394202550,2.14561,2511.4,2511.3,1.42878]
[1750394202750,1.3493,2511.4,2511.3,1.42878]
[1750394203352,2.14558,2511.4,2511.3,1.42878]
[1750394204055,2.14561,2511.4,2511.3,0.79631]
[1750394204254,1.3493,2511.4,2511.3,3.96792849]
[1750394204451,2.14558,2511.4,2511.3,3.96792849]
[1750394204758,2.14558,2511.4,2511.3,0.79631]
[1750394205252,0.79631,2511.3,2511.2,1.43202]
[1750394205454,1.2578,2511.3,2511.0,0.79639]
[1750394205652,0.79644,2511.0,2510.9,0.79642]
[1750394205852,0.7964,2511.1,2511.0,0.79638]
[1750394206657,0.79641,2511.0,2510.9,0.79643]
[1750394206855,0.79641,2511.0,2510.8,1.43214]
[1750394206856,0.79644,2510.9,2510.8,1.43214]
[1750394207056,0.79647,2510.8,2510.7,0.79649]
[1750394207254,2.11057,2510.8,2510.7,25.04049]
[1750394207456,2.11057,2510.8,2510.7,0.79651]
[1750394207648,2.11057,2510.8,2510.7,25.04051]
[1750394208251,2.11057,2510.8,2510.7,0.79651]
[1750394208451,2.11057,2510.8,2510.7,25.04051]
[1750394210059,2.11057,2510.8,2510.7,0.79651]
[1750394210261,1.3141,2510.8,2510.7,25.04251]
[1750394210657,1.3141,2510.8,2510.7,28.21412849]
[1750394210856,2.11057,2510.8,2510.7,28.21412849]
[1750394211164,2.11057,2510.8,2510.7,3.96812849]
[1750394211353,2.11057,2510.8,2510.7,28.21312849]
[1750394211756,1.3141,2510.8,2510.7,28.21312849]
[1750394212155,2.11057,2510.8,2510.7,28.21312849]
[1750394213060,2.11057,2510.8,2510.7,0.79651]
[1750394213362,0.79654,2510.7,2510.5,10.05421849]
[1750394213563,2.14854,2510.7,2510.6,25.04251]
[1750394214764,2.14854,2510.7,2510.6,0.79651]
[1750394214965,0.79654,2510.6,2510.5,0.6336]
[1750394216165,0.79654,2510.6,2510.5,1.43017]
[1750394217771,0.79654,2510.6,2510.5,0.6336]
[1750394220663,0.79654,2510.6,2510.5,1.43017]
[1750394220859,0.79654,2510.7,2510.6,0.79654]
[1750394221063,0.79654,2510.7,2510.6,3.96815849]
[1750394222570,0.7965,2510.7,2510.6,3.96813849]
[1750394224565,0.7965,2510.7,2510.6,0.79652]
[1750394224970,0.79654,2510.6,2510.5,1.43013]
[1750394226470,0.79654,2510.6,2510.5,0.6336]
[1750394226673,0.79654,2510.6,2510.5,25.67717]
[1750394227073,0.79654,2510.6,2510.5,1.43017]
[1750394230972,0.6306,2511.1,2510.6,1.9913]
[1750394231181,0.79645,2511.0,2510.9,3.96802849]
[1750394231677,0.7964,2511.1,2511.0,0.79638]
[1750394232071,1.92784505,2511.1,2511.0,0.79638]
[1750394232472,1.92784505,2511.1,2511.0,25.04338]
[1750394233575,4.30306354,2511.1,2510.8,0.6662]
[1750394233781,2.16531,2511.0,2510.9,30.492]
[1750394234075,0.7964,2511.1,2511.0,0.79638]
[1750394234268,3.2078,2511.2,2511.1,0.79638]
[1750394234582,5.13630481,2511.2,2511.1,0.79638]
[1750394234775,5.13630481,2511.2,2511.1,25.04138]
[1750394239472,5.13621901,2511.2,2511.1,25.04138]
[1750394239972,1.92841901,2511.2,2511.1,25.04138]
[1750394242580,1.13204901,2511.2,2511.1,28.21299849]
[1750394242774,0.79631,2511.4,2511.3,0.79628]
[1750394242976,1.92748313,2511.4,2511.3,0.79628]
[1750394243784,1.13117313,2511.4,2511.3,0.79628]
[1750394243988,3.2078,2511.5,2511.4,0.79628]
[1750394244284,5.13497779,2511.5,2511.4,0.79628]
[1750394245094,4.00407,2511.5,2511.4,0.79628]
[1750394245883,5.13464895,2511.5,2511.4,0.79628]
[1750394246382,0.79634,2511.4,2511.3,0.79628]
[1750394248188,2.07744,2511.4,2511.3,25.03628]
[1750394248386,4.00407,2511.5,2511.4,0.79628]
[1750394248782,3.2078,2511.5,2511.4,0.79628]
[1750394248980,4.4889,2511.5,2511.4,0.79628]
[1750394249587,5.28515,2511.5,2511.4,0.79628]
[1750394251393,4.4889,2511.5,2511.4,0.79628]
[1750394251592,5.28515,2511.5,2511.4,0.79628]
[1750394252688,4.4889,2511.5,2511.4,0.79628]
[1750394254592,5.28515,2511.5,2511.4,0.79628]
[1750394256886,5.28515,2511.5,2511.4,0.86561781]
[1750394257494,2.07735,2511.5,2511.4,0.86561781]
[1750394258989,3.20920819,2511.5,2511.4,0.86561781]
[1750394263002,1.13185819,2511.5,2511.4,0.86561781]
[1750394263201,3.2078,2511.6,2511.5,0.79625]
[1750394263507,4.34076081,2511.6,2511.5,3.96786849]
[1750394263807,4.34076081,2511.6,2511.5,4.64116849]
[1750394264004,0.79613,2511.9,2511.8,0.79612]
[1750394264208,1.92941765,2511.9,2511.8,0.79612]
[1750394264809,1.13328765,2511.9,2511.8,0.79612]
[1750394265010,1.13328765,2511.9,2511.8,1.47012]
[1750394265404,3.2078,2512.0,2511.8,0.674]
[1750394265610,3.2078,2512.0,2511.9,0.79612]
[1750394265911,4.34070606,2512.0,2511.9,0.79612]
[1750394267711,3.2078,2512.0,2511.9,0.79612]
[1750394268210,3.2078,2512.0,2511.9,3.96773849]
[1750394268804,0.6587,2512.3,2512.0,1.9902]
[1750394269012,4.5851,2512.4,2512.1,1.99014]
[1750394269208,5.38109,2512.4,2512.3,0.796]
[1750394269508,6.51273558,2512.4,2512.3,0.796]
[1750394271212,5.71674558,2512.4,2512.3,0.796]
[1750394271714,3.2078,2512.4,2512.3,28.19361849]
[1750394271914,4.00366,2512.8,2512.7,0.79587]
[1750394272116,4.33868486,2512.8,2512.7,0.79587]
[1750394272615,3.2078,2512.8,2512.7,0.79587]
[1750394274810,4.00364,2512.8,2512.7,0.79587]
[1750394275010,3.2078,2512.8,2512.7,0.79587]
[1750394276815,3.2078,2512.8,2512.7,31.25387]
[1750394278318,5.36354,2512.8,2512.7,31.25387]
[1750394279611,3.2078,2512.8,2512.7,31.25387]
[1750394280217,3.2078,2512.8,2512.7,25.01287]
[1750394281522,0.79583,2512.9,2512.8,0.79584]
[1750394281721,2.06693,2512.9,2512.8,0.79584]
[1750394282217,1.2711,2512.9,2512.8,0.79584]
[1750394282621,3.2078,2513.0,2512.9,0.79581]
[1750394283316,4.00358,2513.0,2512.9,0.79581]
[1750394283717,3.2078,2513.0,2512.9,0.79581]
[1750394284122,4.00358,2513.0,2512.9,0.79581]
[1750394284922,0.79586,2512.9,2512.8,25.00881]
[1750394285124,0.79606,2512.1,2512.0,7.02704]
[1750394285523,0.79602,2512.3,2512.2,0.796]
[1750394285717,0.79606,2512.2,2512.1,0.79604]
[1750394286118,1.3634,2512.3,2512.2,0.79603]
[1750394286119,2.15942,2512.3,2512.2,0.79603]
[1750394286326,1.43936,2512.5,2512.2,24.214]
[1750394286526,2.80276,2512.5,2512.4,0.79597]
[1750394290227,1.3634,2512.5,2512.4,0.79597]
[1750394290923,2.15933,2512.5,2512.4,0.79597]
[1750394291228,1.3634,2512.5,2512.4,0.79597]
[1750394292227,2.15933,2512.5,2512.4,0.79597]
[1750394292919,1.3634,2512.5,2512.4,0.79597]
[1750394293828,2.15933,2512.5,2512.4,0.79597]
[1750394294027,2.15933,2512.5,2512.2,0.79599]
[1750394294028,0.796,2512.3,2512.2,0.79599]
[1750394294221,0.796,2512.3,2512.2,31.23899]
[1750394294625,2.0487,2512.3,2512.2,31.23899]
[1750394295522,4.4605,2512.3,2512.2,0.79603]
[1750394295831,2.0487,2512.3,2512.2,3.96764849]
[1750394296331,2.0487,2512.3,2512.2,0.79603]
[1750394298029,0.79606,2512.2,2512.1,0.79603]
[1750394298229,2.16276,2512.2,2512.1,0.79603]
[1750394299524,4.65529,2512.4,2512.3,0.796]
[1750394299726,4.00379,2512.4,2512.3,0.796]
[1750394302634,3.2078,2512.4,2512.1,0.06933781]
[1750394302835,0.79603,2512.2,2512.1,31.30737781]
[1750394303637,1.45573,2512.2,2512.1,31.30737781]
[1750394304837,0.79603,2512.2,2512.1,31.30737781]
[1750394305340,0.79603,2512.2,2512.1,34.4789963]
[1750394308538,0.79603,2512.2,2512.1,28.2479963]
[1750394311636,0.79603,2512.2,2512.1,24.28033781]
[1750394311830,0.79603,2512.2,2512.1,0.06933781]
[1750394312134,0.79603,2512.2,2512.1,24.28033781]
[1750394312533,0.79603,2512.2,2512.1,0.06933781]
[1750394312734,5.10391239,2512.2,2512.1,0.06933781]
[1750394312935,5.10418693,2512.2,2512.1,0.06933781]
[1750394315943,0.79616,2511.8,2511.7,1.42937]
[1750394316837,2.10596,2511.8,2511.7,1.42937]
[1750394317238,2.10596,2511.8,2511.7,0.6332]
[1750394317542,0.79619,2511.7,2511.6,25.00619]
[1750394317846,0.79619,2511.7,2511.6,25.69309]
[1750394318049,1.3098,2511.8,2511.7,0.79619]
[1750394318050,2.10598,2511.8,2511.7,0.79619]
[1750394318239,0.79618,2511.8,2511.7,0.79619]
[1750394319438,2.16538,2511.8,2511.7,0.79619]
[1750394320847,0.79619,2511.7,2511.6,25.69309]
[1750394321042,2.16539,2511.7,2511.6,25.00619]
[1750394322143,0.79622,2511.6,2511.5,47.33942]
[1750394322346,2.05262,2511.6,2511.5,1.47042]
[1750394323841,1.2564,2511.6,2511.5,1.47042]
[1750394324643,2.05262,2511.6,2511.5,1.47042]
[1750394326948,1.2564,2511.6,2511.5,1.47042]
[1750394327851,4.004,2511.7,2511.6,0.79622]
[1750394328852,0.7962,2511.7,2511.6,0.79622]
[1750394329850,0.7962,2511.7,2511.6,0.86555781]
[1750394331850,2.1255,2511.7,2511.6,0.86555781]
[1750394337752,2.1255,2511.7,2511.6,4.0371763]
[1750394337954,0.7962,2511.7,2511.6,4.0371763]
[1750394338251,4.00396,2511.8,2511.7,0.79619]
[1750394339752,0.79619,2511.7,2511.6,0.06933781]
[1750394339954,2.75159,2511.7,2511.6,0.86555781]
[1750394341658,2.75159,2511.7,2511.6,0.06933781]
[1750394342756,2.75159,2511.7,2511.6,0.86555781]
[1750394343557,2.75159,2511.7,2511.6,0.06933781]
[1750394343758,0.79631,2511.3,2511.2,4.00412]
[1750394343958,1.3638,2511.6,2511.2,6.37941849]
[1750394344158,0.79628,2511.5,2511.4,0.79627]
[1750394344654,1.3638,2511.6,2511.3,1.3098]
[1750394344860,0.79628,2511.4,2511.3,2.10609]
[1750394347563,0.79628,2511.4,2511.3,1.3098]
[1750394347756,0.79628,2511.4,2511.3,1.47921]
[1750394350360,0.79628,2511.4,2511.3,31.91421]
[1750394352663,0.79628,2511.4,2511.3,31.1179]
[1750394352959,0.79631,2511.3,2511.2,6.29533781]
[1750394353158,2.76421,2511.3,2511.2,6.29533781]
[1750394353355,2.76421,2511.3,2511.2,30.50533781]
[1750394353552,2.76421,2511.3,2511.2,0.06933781]
[1750394353967,0.79647,2510.9,2510.7,49.03261849]
[1750394354159,0.79647,2510.9,2510.8,31.23247]
[1750394354463,0.79647,2510.8,2510.7,50.47950849]
[1750394354662,0.79647,2510.8,2510.7,80.91550849]
[1750394355068,0.79647,2510.8,2510.7,52.7374]
[1750394355365,0.79647,2510.8,2510.7,77.7439]
[1750394356064,0.79647,2510.8,2510.7,0.6504]
[1750394356260,0.7965,2510.7,2510.6,31.23451]
[1750394356665,0.79654,2510.6,2510.5,7.65903]
[1750394356862,0.79654,2510.6,2510.5,31.87003]
[1750394357870,1.2676,2510.7,2510.6,0.79654]
[1750394358769,1.2676,2510.7,2510.6,3.96815849]
[1750394359160,2.0641,2510.7,2510.6,3.96815849]
[1750394359465,1.45447,2510.9,2510.8,0.79647]
[1750394359865,2.80747,2510.9,2510.8,0.79647]
[1750394360267,1.353,2510.9,2510.8,3.96808849]
[1750394360668,1.42196,2511.2,2510.8,27.38461849]
[1750394360864,0.79636,2511.2,2511.1,3.17161849]
[1750394361167,0.79633,2511.3,2511.2,0.79631]
[1750394361562,0.79635,2511.2,2511.1,3.17161849]
[1750394361760,0.79635,2511.2,2511.1,3.96798849]
[1750394362158,2.14933,2511.3,2511.2,0.79635]
[1750394362361,2.14933,2511.3,2511.1,3.96797849]
[1750394362362,0.79635,2511.2,2511.1,3.96797849]
[1750394362574,0.79635,2511.2,2511.1,0.79636]
[1750394363173,0.79641,2511.1,2511.0,0.79638]
[1750394364266,0.79644,2510.9,2510.8,0.79645]
[1750394364471,0.79644,2510.9,2510.8,25.01945]
[1750394364669,0.79644,2510.9,2510.8,0.79645]
[1750394365767,2.05704,2510.9,2510.8,0.79645]
[1750394366470,0.79644,2510.9,2510.8,3.96806849]
[1750394367383,3.2078,2511.1,2510.8,3.17161849]
[1750394367575,2.05697,2511.2,2511.1,0.79638]
[1750394367872,0.79637,2511.2,2511.1,3.96799849]
[1750394368078,0.79633,2511.3,2511.2,0.79631]
[1750394368377,1.9354353,2511.3,2511.2,0.79631]
[1750394370776,1.9354353,2511.3,2511.1,0.79635]
[1750394370777,0.79639,2511.2,2511.1,0.79635]
[1750394370978,2.16699,2511.2,2511.1,0.79635]
[1750394372377,0.79639,2511.2,2511.1,0.79635]
[1750394373676,0.79633,2511.3,2511.2,0.79631]
[1750394373877,1.9374099,2511.3,2511.2,0.79631]
[1750394374178,3.2608099,2511.3,2511.2,0.79631]
[1750394378673,0.79635,2511.2,2511.1,1.46736]
[1750394378979,1.9374299,2511.2,2511.1,1.46736]
[1750394384282,1.9374299,2511.2,2511.1,0.671]
[1750394384581,1.9374299,2511.2,2511.1,1.46738]
[1750394384782,2.6097299,2511.2,2511.1,1.46738]
[1750394385483,2.6097299,2511.2,2511.1,25.00938]
[1750394386280,2.6097299,2511.2,2511.1,0.79638]
[1750394386477,0.79641,2511.1,2511.0,0.7964]
[1750394386774,3.3079899,2511.1,2511.0,25.0094]
[1750394393686,3.3079899,2511.1,2511.0,0.7964]
[1750394400192,1.1410799,2511.1,2511.0,0.7964]
[1750394400391,0.79635,2511.3,2511.2,0.7963]
[1750394400687,4.00415,2511.3,2511.2,24.211]
[1750394400890,0.79635,2511.2,2511.1,7.02335]
[1750394401194,2.04985,2511.2,2511.1,31.23435]
[1750394403001,0.79641,2511.1,2511.0,0.79639]
[1750394403297,2.04571,2511.1,2511.0,25.00639]
[1750394405593,1.2493,2511.1,2511.0,25.00639]
[1750394406500,1.2493,2511.1,2511.0,0.79639]
[1750394406695,2.04568,2511.1,2511.0,25.00639]
[1750394411005,2.04568,2511.1,2511.0,25.00641]
[1750394412507,2.04568,2511.1,2511.0,0.79641]
[1750394412700,2.04568,2511.1,2511.0,25.00541]
[1750394414605,3.19061008,2511.1,2511.0,25.00541]
[1750394415206,3.19061008,2511.1,2511.0,0.79641]
[1750394415503,0.79641,2511.0,2510.9,0.6766]
[1750394415708,3.88707119,2511.0,2510.9,24.208]
[1750394416005,4.53237119,2511.0,2510.9,25.00444]
[1750394416410,4.53237119,2511.0,2510.9,24.208]
[1750394416707,4.53237119,2511.0,2510.7,7.5411]
[1750394416708,0.79644,2510.9,2510.8,0.79645]
[1750394416908,3.31300119,2510.9,2510.8,25.00345]
[1750394417609,3.31300119,2510.9,2510.8,0.79645]
[1750394417809,3.31300119,2510.9,2510.8,25.00345]
[1750394419403,2.16814,2510.9,2510.8,25.00345]
[1750394420711,0.79647,2510.8,2510.7,25.66878]
[1750394420910,2.12797,2510.8,2510.7,25.66878]
[1750394423010,2.12797,2510.8,2510.7,1.46178]
[1750394423208,2.12797,2510.8,2510.7,25.66878]
[1750394423403,2.12797,2510.8,2510.7,1.46178]
[1750394423610,2.12797,2510.8,2510.7,25.66878]
[1750394423808,2.12797,2510.8,2510.7,1.46178]
[1750394424107,2.12797,2510.8,2510.7,25.66878]
[1750394424308,0.79647,2510.8,2510.7,25.66878]
[1750394431621,0.79647,2510.8,2510.7,25.66678]
[1750394432117,0.79647,2510.8,2510.7,1.4618]
[1750394432321,0.79647,2510.8,2510.7,25.6668]
[1750394433917,1.3233,2510.9,2510.7,25.6668]
[1750394434114,0.79647,2510.8,2510.7,25.6668]
[1750394434316,2.11977,2510.9,2510.8,0.79647]
[1750394434520,3.26261642,2510.9,2510.8,0.79647]
[1750394434714,2.11977,2510.9,2510.8,0.79647]
[1750394435020,2.11974,2510.9,2510.8,0.79647]
[1750394437421,0.79647,2510.8,2510.7,1.46178]
[1750394440218,2.11976,2510.9,2510.8,0.79647]
[1750394441225,1.3233,2510.9,2510.8,0.79647]
[1750394442624,1.44173,2511.0,2510.9,0.79644]
[1750394442814,1.94002777,2511.0,2510.9,0.79644]
[1750394443018,1.14359777,2511.0,2510.9,0.79644]
[1750394443219,1.94000777,2511.0,2510.9,0.79644]
[1750394443420,1.14359777,2511.0,2510.9,3.96805849]
[1750394445034,1.14359777,2511.0,2510.9,28.17105849]
[1750394445248,1.14359777,2511.0,2510.9,34.39205849]
[1750394445551,3.2078,2511.4,2511.3,0.79631]
[1750394445739,4.3515496,2511.4,2511.3,28.16992849]
[1750394446247,4.3515496,2511.4,2511.3,24.99831]
[1750394446549,3.2078,2511.4,2511.3,25.67711]
[1750394446955,0.79627,2511.5,2511.4,0.79628]
[1750394447146,3.29071204,2511.5,2511.4,0.79628]
[1750394449552,2.14747,2511.5,2511.4,0.79628]
[1750394451354,1.3512,2511.5,2511.4,0.79628]
[1750394451553,12.60041849,2511.8,2511.6,0.79619]
[1750394451748,3.30237304,2511.7,2511.6,0.79619]
[1750394453345,0.79628,2511.4,2511.3,1.47508]
[1750394454151,2.09888,2511.4,2511.3,1.47508]
[1750394454651,0.79623,2511.7,2511.6,0.79619]
[1750394454953,1.93656756,2511.7,2511.6,0.79619]
[1750394455152,3.23916756,2511.7,2511.6,0.79619]
[1750394455848,1.14033756,2511.7,2511.6,0.79619]
[1750394456354,4.00397,2511.8,2511.7,0.79619]
[1750394456554,5.14421278,2511.8,2511.7,0.79619]
[1750394459159,1.93641278,2511.8,2511.7,0.79619]
[1750394464958,0.79612,2511.9,2511.8,0.79612]
[1750394465351,2.07692,2512.0,2511.9,0.79612]
[1750394465544,3.21799243,2512.0,2511.9,0.79612]
[1750394467557,3.21796243,2512.0,2511.9,0.79612]
[1750394467761,0.79607,2512.1,2512.0,0.79606]
[1750394467953,1.93725251,2512.1,2512.0,0.79606]
[1750394468153,1.14118251,2512.1,2512.0,1.43136]
[1750394468349,4.00385,2512.2,2512.1,0.79606]
[1750394468552,6.4608598,2512.2,2512.1,0.79606]
[1750394470849,0.79606,2512.1,2512.0,1.43137]
[1750394471052,5.96847849,2512.1,2512.0,0.79607]
[1750394471451,2.11186,2512.1,2512.0,0.79607]
[1750394471654,3.25316075,2512.1,2512.0,0.79607]
[1750394475657,2.45710075,2512.1,2512.0,0.79607]
[1750394475858,1.14130075,2512.1,2512.0,0.79607]
[1750394476260,4.00384,2512.2,2512.1,0.79606]
[1750394476459,5.14540694,2512.2,2512.1,0.79606]
[1750394476759,1.14156694,2512.2,2512.1,0.79606]
[1750394476962,0.79592,2512.6,2512.1,9.4218]
[1750394477161,0.79592,2512.6,2512.5,0.7959]